[Event "Early-Titled-Tuesday-Blitz-April-02-2024"]
[Site "Chess.com"]
[Date "2024.04.02"]
[Round "11"]
[White "vovachesss"]
[Black "lefonghua"]
[Result "1/2-1/2"]
[WhiteElo "2803"]
[BlackElo "2622"]
[TimeControl "180+1"]
[EndTime "10:08:25 PDT"]
[Termination "Game drawn by repetition"]

1. e4 {[%clk 0:03:00.9]} 1... c5 {[%clk 0:02:59.7]} 2. Nf3 {[%clk 0:03:00.2]}
2... g6 {[%clk 0:03:00]} 3. d4 {[%clk 0:02:59.9]} 3... cxd4 {[%clk 0:03:00.9]}
4. Qxd4 {[%clk 0:03:00.8]} 4... Nf6 {[%clk 0:03:00.9]} 5. Nc3 {[%clk 0:03:01.4]}
5... Nc6 {[%clk 0:03:01]} 6. Qa4 {[%clk 0:03:02.1]} 6... d6 {[%clk 0:03:01.4]}
7. e5 {[%clk 0:03:02.8]} 7... dxe5 {[%clk 0:03:02.3]} 8. Nxe5 {[%clk 0:03:03.6]}
8... Bg7 {[%clk 0:03:02.9]} 9. Bb5 {[%clk 0:03:02.9]} 9... O-O {[%clk
0:03:03.1]} 10. Nxc6 {[%clk 0:03:03]} 10... bxc6 {[%clk 0:03:04]} 11. Bxc6
{[%clk 0:03:03.9]} 11... Bd7 {[%clk 0:03:04.5]} 12. O-O {[%clk 0:02:57]} 12...
Rc8 {[%clk 0:02:57.6]} 13. Bxd7 {[%clk 0:02:54.9]} 13... Qxd7 {[%clk 0:02:58.5]}
14. Qxd7 {[%clk 0:02:53.8]} 14... Nxd7 {[%clk 0:02:59.4]} 15. Nd5 {[%clk
0:02:53.7]} 15... Rxc2 {[%clk 0:02:53.5]} 16. Nxe7+ {[%clk 0:02:50.2]} 16... Kh8
{[%clk 0:02:54]} 17. Be3 {[%clk 0:02:38.1]} 17... Rxb2 {[%clk 0:02:45.9]} 18. a4
{[%clk 0:02:20.9]} 18... a5 {[%clk 0:02:27.3]} 19. Nc6 {[%clk 0:02:18.7]} 19...
Rc2 {[%clk 0:01:58.7]} 20. Rac1 {[%clk 0:02:14]} 20... Ra2 {[%clk 0:01:55.9]}
21. Rc4 {[%clk 0:02:14.4]} 21... Ne5 {[%clk 0:01:53.2]} 22. Nxe5 {[%clk
0:02:14.3]} 22... Bxe5 {[%clk 0:01:54.1]} 23. Rc5 {[%clk 0:02:14.4]} 23... Bf6
{[%clk 0:01:47.2]} 24. Rxa5 {[%clk 0:02:14.6]} 24... Rc8 {[%clk 0:01:46]} 25.
Ra6 {[%clk 0:02:00.8]} 25... Kg7 {[%clk 0:01:44.8]} 26. a5 {[%clk 0:01:46.1]}
26... Rc4 {[%clk 0:01:42.6]} 27. g3 {[%clk 0:00:50.4]} 27... Rca4 {[%clk
0:01:35.7]} 28. Bb6 {[%clk 0:00:29.3]} 28... Bd4 {[%clk 0:01:29.2]} 29. Bd8
{[%clk 0:00:18.5]} 29... h5 {[%clk 0:01:10.9]} 30. Kg2 {[%clk 0:00:16.4]} 30...
Bc3 {[%clk 0:00:45.9]} 31. Rc1 {[%clk 0:00:13.8]} 31... Bd4 {[%clk 0:00:44.6]}
32. Rf1 {[%clk 0:00:11.9]} 32... Bc3 {[%clk 0:00:45]} 33. Rc6 {[%clk 0:00:11.6]}
33... Bxa5 {[%clk 0:00:37.3]} 34. Bf6+ {[%clk 0:00:11.7]} 34... Kh7 {[%clk
0:00:36]} 35. Rc8 {[%clk 0:00:07.4]} 35... g5 {[%clk 0:00:35.9]} 36. Bxg5 {[%clk
0:00:06.4]} 36... Kg6 {[%clk 0:00:35.5]} 37. Be3 {[%clk 0:00:05.5]} 37... Re4
{[%clk 0:00:32]} 38. Rc6+ {[%clk 0:00:05.8]} 38... f6 {[%clk 0:00:29.7]} 39. Kf3
{[%clk 0:00:05.7]} 39... Re5 {[%clk 0:00:29.4]} 40. Ra6 {[%clk 0:00:05.5]} 40...
Rf5+ {[%clk 0:00:28.2]} 41. Kg2 {[%clk 0:00:05.1]} 41... Rc2 {[%clk 0:00:27.8]}
42. Rd1 {[%clk 0:00:03.9]} 42... Bc3 {[%clk 0:00:25.1]} 43. Rd3 {[%clk
0:00:03.9]} 43... Be1 {[%clk 0:00:24.2]} 44. Ra1 {[%clk 0:00:01.7]} 44... Bxf2
{[%clk 0:00:24.1]} 45. Bxf2 {[%clk 0:00:01.9]} 45... Rfxf2+ {[%clk 0:00:24.4]}
46. Kg1 {[%clk 0:00:02.5]} 46... Rg2+ {[%clk 0:00:24.6]} 47. Kf1 {[%clk
0:00:01.7]} 47... Rxh2 {[%clk 0:00:25]} 48. Kg1 {[%clk 0:00:02.6]} 48... Rcg2+
{[%clk 0:00:24.2]} 49. Kf1 {[%clk 0:00:03.2]} 49... Kg5 {[%clk 0:00:19.6]} 50.
Ra5+ {[%clk 0:00:02.7]} 50... f5 {[%clk 0:00:20]} 51. Rf3 {[%clk 0:00:02.6]}
51... Rb2 {[%clk 0:00:16]} 52. Rfxf5+ {[%clk 0:00:02.7]} 52... Kg6 {[%clk
0:00:15.9]} 53. Rg5+ {[%clk 0:00:02.9]} 53... Kf6 {[%clk 0:00:15.9]} 54. Raf5+
{[%clk 0:00:03.4]} 54... Ke6 {[%clk 0:00:15.9]} 55. Kg1 {[%clk 0:00:04.3]} 55...
Rbg2+ {[%clk 0:00:14.3]} 56. Kf1 {[%clk 0:00:04.7]} 56... Rxg3 {[%clk
0:00:13.3]} 57. Re5+ {[%clk 0:00:04.1]} 57... Kd6 {[%clk 0:00:13.7]} 58. Rd5+
{[%clk 0:00:03.9]} 58... Ke6 {[%clk 0:00:13.7]} 59. Rde5+ {[%clk 0:00:03.7]}
59... Kd6 {[%clk 0:00:14.3]} 60. Rd5+ {[%clk 0:00:03.4]} 60... Ke6 {[%clk
0:00:14.8]} 61. Rde5+ {[%clk 0:00:02.5]} 1/2-1/2

[Event "Early-Titled-Tuesday-Blitz-April-02-2024"]
[Site "Chess.com"]
[Date "2024.04.02"]
[Round "11"]
[White "Zkid"]
[Black "sonicdravise"]
[Result "0-1"]
[WhiteElo "2856"]
[BlackElo "2634"]
[TimeControl "180+1"]
[EndTime "10:08:26 PDT"]
[Termination "sonicdravise won by checkmate"]

1. e4 {[%clk 0:03:00.9]} 1... c5 {[%clk 0:03:00.6]} 2. Nf3 {[%clk 0:03:00.4]}
2... Nc6 {[%clk 0:03:01.2]} 3. d4 {[%clk 0:02:59.8]} 3... cxd4 {[%clk
0:03:02.1]} 4. Nxd4 {[%clk 0:03:00.5]} 4... Nf6 {[%clk 0:03:02.3]} 5. Nc3 {[%clk
0:03:01.1]} 5... d6 {[%clk 0:03:02.4]} 6. Bg5 {[%clk 0:03:00.7]} 6... e6 {[%clk
0:03:01.3]} 7. Qd2 {[%clk 0:02:58.4]} 7... a6 {[%clk 0:03:01.1]} 8. O-O-O {[%clk
0:02:59]} 8... h6 {[%clk 0:02:59.6]} 9. Nxc6 {[%clk 0:02:54.9]} 9... bxc6 {[%clk
0:03:00.5]} 10. Bf4 {[%clk 0:02:55.2]} 10... d5 {[%clk 0:03:01.1]} 11. Qe3
{[%clk 0:02:54.6]} 11... Bb4 {[%clk 0:03:01.4]} 12. e5 {[%clk 0:02:46.7]} 12...
Nd7 {[%clk 0:02:51.6]} 13. Qg3 {[%clk 0:02:44.7]} 13... Kf8 {[%clk 0:02:34.6]}
14. h4 {[%clk 0:02:38.2]} 14... Qa5 {[%clk 0:02:33.2]} 15. a3 {[%clk 0:02:34.8]}
15... Bxc3 {[%clk 0:02:31.5]} 16. Qxc3 {[%clk 0:02:35.7]} 16... Qxc3 {[%clk
0:02:31.3]} 17. bxc3 {[%clk 0:02:36.6]} 17... Nc5 {[%clk 0:02:23.2]} 18. Be3
{[%clk 0:02:30.1]} 18... Ne4 {[%clk 0:02:00.2]} 19. c4 {[%clk 0:02:29.6]} 19...
f6 {[%clk 0:01:46]} 20. exf6 {[%clk 0:02:24.9]} 20... gxf6 {[%clk 0:01:43.1]}
21. Bd3 {[%clk 0:02:23.7]} 21... Nd6 {[%clk 0:01:32.7]} 22. Bc5 {[%clk
0:02:20.8]} 22... Ke7 {[%clk 0:01:33.2]} 23. Rhe1 {[%clk 0:02:05.7]} 23... Kd7
{[%clk 0:01:31.5]} 24. Re3 {[%clk 0:02:05.3]} 24... a5 {[%clk 0:01:24.3]} 25.
Rde1 {[%clk 0:02:00.3]} 25... e5 {[%clk 0:01:18.3]} 26. Rg3 {[%clk 0:01:55.7]}
26... Ba6 {[%clk 0:01:08.5]} 27. f4 {[%clk 0:01:33.2]} 27... e4 {[%clk
0:00:59.7]} 28. Rg7+ {[%clk 0:01:27.4]} 28... Ke6 {[%clk 0:00:59.2]} 29. Be2
{[%clk 0:01:24.8]} 29... h5 {[%clk 0:00:52.6]} 30. g4 {[%clk 0:01:22.6]} 30...
hxg4 {[%clk 0:00:32.7]} 31. Bxg4+ {[%clk 0:01:21.6]} 31... f5 {[%clk 0:00:33.4]}
32. Rg6+ {[%clk 0:01:18.6]} 32... Kf7 {[%clk 0:00:33.9]} 33. Rxd6 {[%clk
0:01:17.3]} 33... fxg4 {[%clk 0:00:34.3]} 34. cxd5 {[%clk 0:01:16.7]} 34... cxd5
{[%clk 0:00:33.7]} 35. Rxd5 {[%clk 0:01:16.8]} 35... Rxh4 {[%clk 0:00:31.9]} 36.
Rxe4 {[%clk 0:01:12]} 36... Rc8 {[%clk 0:00:12.6]} 37. Rd7+ {[%clk 0:00:54.4]}
37... Kf6 {[%clk 0:00:12.8]} 38. Bd4+ {[%clk 0:00:35]} 38... Kf5 {[%clk
0:00:12.1]} 39. Re5+ {[%clk 0:00:35.4]} 39... Kxf4 {[%clk 0:00:11.6]} 40. Rf7+
{[%clk 0:00:35.6]} 40... Kg3 {[%clk 0:00:10.8]} 41. Bf2+ {[%clk 0:00:35.8]}
41... Kh3 {[%clk 0:00:11.2]} 42. Re3+ {[%clk 0:00:35.5]} 42... g3 {[%clk
0:00:09.6]} 43. Bxg3 {[%clk 0:00:28.1]} 43... Rhc4 {[%clk 0:00:10]} 44. Be5+
{[%clk 0:00:20.7]} 44... Kh4 {[%clk 0:00:03.1]} 45. Rg3 {[%clk 0:00:07.6]} 45...
Rxc2+ {[%clk 0:00:02.8]} 46. Kb1 {[%clk 0:00:07.9]} 46... Rc1+ {[%clk
0:00:02.5]} 47. Kb2 {[%clk 0:00:07.5]} 47... R8c2+ {[%clk 0:00:03.1]} 48. Kb3
{[%clk 0:00:08.2]} 48... Bc4+ {[%clk 0:00:03.9]} 49. Ka4 {[%clk 0:00:08.8]}
49... Bxf7 {[%clk 0:00:04.1]} 50. Rg7 {[%clk 0:00:09.3]} 50... Be8+ {[%clk
0:00:02.4]} 51. Kb3 {[%clk 0:00:07.6]} 51... Rc5 {[%clk 0:00:03.2]} 52. Bd4
{[%clk 0:00:06]} 52... a4+ {[%clk 0:00:03.3]} 53. Kb2 {[%clk 0:00:06]} 53...
R5c2# {[%clk 0:00:03.5]} 0-1

[Event "Early-Titled-Tuesday-Blitz-April-02-2024"]
[Site "Chess.com"]
[Date "2024.04.02"]
[Round "11"]
[White "IshviAggarwal"]
[Black "SaiHanThiha"]
[Result "0-1"]
[WhiteElo "2136"]
[BlackElo "2595"]
[TimeControl "180+1"]
[EndTime "10:08:26 PDT"]
[Termination "SaiHanThiha won on time"]

1. d4 {[%clk 0:02:55]} 1... Nf6 {[%clk 0:03:00.2]} 2. c4 {[%clk 0:02:55.1]} 2...
g6 {[%clk 0:03:00.7]} 3. g3 {[%clk 0:02:55.2]} 3... Bg7 {[%clk 0:03:01.2]} 4.
Bg2 {[%clk 0:02:55.5]} 4... O-O {[%clk 0:03:02.1]} 5. Nc3 {[%clk 0:02:55.5]}
5... d6 {[%clk 0:03:01.3]} 6. Nf3 {[%clk 0:02:56]} 6... c6 {[%clk 0:03:01.7]} 7.
O-O {[%clk 0:02:56.2]} 7... Qa5 {[%clk 0:03:02.4]} 8. e4 {[%clk 0:02:51.9]} 8...
Bg4 {[%clk 0:03:02.8]} 9. h3 {[%clk 0:02:51.9]} 9... Bxf3 {[%clk 0:03:03.3]} 10.
Bxf3 {[%clk 0:02:51.6]} 10... e5 {[%clk 0:03:03.6]} 11. Be3 {[%clk 0:02:51.1]}
11... Nbd7 {[%clk 0:03:01.9]} 12. Bg2 {[%clk 0:02:51]} 12... exd4 {[%clk
0:02:55.7]} 13. Qxd4 {[%clk 0:02:49.2]} 13... Nd5 {[%clk 0:02:50.9]} 14. Qd3
{[%clk 0:02:27.4]} 14... Ne5 {[%clk 0:02:38.1]} 15. Qe2 {[%clk 0:02:27]} 15...
Nxc3 {[%clk 0:02:37.5]} 16. bxc3 {[%clk 0:02:26.1]} 16... Qxc3 {[%clk
0:02:21.3]} 17. Rac1 {[%clk 0:02:26.2]} 17... Qa3 {[%clk 0:02:21.6]} 18. Rfd1
{[%clk 0:02:23.2]} 18... Rfe8 {[%clk 0:02:16.6]} 19. c5 {[%clk 0:02:22.1]} 19...
Rad8 {[%clk 0:02:06.5]} 20. f4 {[%clk 0:02:16.1]} 20... Bh6 {[%clk 0:01:43.7]}
21. cxd6 {[%clk 0:01:46.2]} 21... Rxd6 {[%clk 0:01:16.6]} 22. Rxd6 {[%clk
0:01:43.5]} 22... Qxd6 {[%clk 0:01:17.5]} 23. fxe5 {[%clk 0:01:42.7]} 23...
Bxe3+ {[%clk 0:01:18.4]} 24. Qxe3 {[%clk 0:01:42.6]} 24... Qxe5 {[%clk
0:01:19.2]} 25. Qxa7 {[%clk 0:01:37.6]} 25... Qxg3 {[%clk 0:01:17.3]} 26. Qf2
{[%clk 0:01:30.7]} 26... Qg5 {[%clk 0:01:16.3]} 27. Rf1 {[%clk 0:01:30.2]} 27...
Re7 {[%clk 0:01:12.5]} 28. Kh1 {[%clk 0:01:27.6]} 28... h5 {[%clk 0:01:07]} 29.
h4 {[%clk 0:01:27.7]} 29... Qe5 {[%clk 0:01:00.2]} 30. Rd1 {[%clk 0:01:00.3]}
30... Kg7 {[%clk 0:00:55.8]} 31. Rd8 {[%clk 0:00:56.2]} 31... Qa1+ {[%clk
0:00:51.1]} 32. Kh2 {[%clk 0:00:55.5]} 32... Qe5+ {[%clk 0:00:45.4]} 33. Qg3
{[%clk 0:00:56]} 33... Qb2 {[%clk 0:00:42.6]} 34. Qd6 {[%clk 0:00:49.7]} 34...
Qe5+ {[%clk 0:00:34.3]} 35. Qxe5+ {[%clk 0:00:49.3]} 35... Rxe5 {[%clk
0:00:35.2]} 36. Rd7 {[%clk 0:00:33.4]} 36... Rb5 {[%clk 0:00:34.3]} 37. Kg3
{[%clk 0:00:27.1]} 37... Kf6 {[%clk 0:00:34.2]} 38. Bf1 {[%clk 0:00:26.5]} 38...
Rb2 {[%clk 0:00:30.2]} 39. Bc4 {[%clk 0:00:19.9]} 39... Ke5 {[%clk 0:00:30.3]}
40. Bxf7 {[%clk 0:00:20.4]} 40... Rb1 {[%clk 0:00:24.4]} 41. Bb3 {[%clk
0:00:09.5]} 41... Rg1+ {[%clk 0:00:19]} 42. Kf2 {[%clk 0:00:05.7]} 42... Rg4
{[%clk 0:00:18.4]} 43. Rxb7 {[%clk 0:00:06.3]} 43... Rf4+ {[%clk 0:00:18.5]} 44.
Kg3 {[%clk 0:00:06.1]} 44... Rg4+ {[%clk 0:00:18.8]} 45. Kh3 {[%clk 0:00:06.4]}
45... Kxe4 {[%clk 0:00:19]} 46. Rb4+ {[%clk 0:00:06.4]} 46... Kf3 {[%clk
0:00:17.7]} 47. Rxg4 {[%clk 0:00:03.2]} 47... hxg4+ {[%clk 0:00:18.6]} 48. Kh2
{[%clk 0:00:03.5]} 48... Kf2 {[%clk 0:00:18.2]} 0-1

[Event "Early-Titled-Tuesday-Blitz-April-02-2024"]
[Site "Chess.com"]
[Date "2024.04.02"]
[Round "11"]
[White "ExchangeAB"]
[Black "GMthekingindian"]
[Result "0-1"]
[WhiteElo "2463"]
[BlackElo "2259"]
[TimeControl "180+1"]
[EndTime "10:08:29 PDT"]
[Termination "GMthekingindian won by resignation"]

1. d4 {[%clk 0:03:00.9]} 1... d5 {[%clk 0:02:59.6]} 2. Nf3 {[%clk 0:03:00.6]}
2... c6 {[%clk 0:02:59.7]} 3. Bf4 {[%clk 0:02:57.9]} 3... Nf6 {[%clk 0:02:57.5]}
4. e3 {[%clk 0:02:57.9]} 4... e6 {[%clk 0:02:53.5]} 5. c4 {[%clk 0:02:57]} 5...
Bd6 {[%clk 0:02:53.6]} 6. Bxd6 {[%clk 0:02:56.3]} 6... Qxd6 {[%clk 0:02:53.2]}
7. Nc3 {[%clk 0:02:56.9]} 7... Nbd7 {[%clk 0:02:52.9]} 8. cxd5 {[%clk
0:02:56.8]} 8... exd5 {[%clk 0:02:52.8]} 9. Bd3 {[%clk 0:02:56.1]} 9... O-O
{[%clk 0:02:50.3]} 10. O-O {[%clk 0:02:55.8]} 10... Re8 {[%clk 0:02:47.4]} 11.
Rc1 {[%clk 0:02:54.5]} 11... h6 {[%clk 0:02:24.2]} 12. a3 {[%clk 0:02:52.5]}
12... a5 {[%clk 0:02:21.8]} 13. Bb1 {[%clk 0:02:51.5]} 13... Ne4 {[%clk
0:02:17]} 14. Nxe4 {[%clk 0:02:43.3]} 14... dxe4 {[%clk 0:02:16.6]} 15. Nd2
{[%clk 0:02:43.5]} 15... f5 {[%clk 0:02:16.3]} 16. Qb3+ {[%clk 0:02:33.2]} 16...
Kh8 {[%clk 0:02:11]} 17. Nc4 {[%clk 0:02:32.7]} 17... Qg6 {[%clk 0:02:08.8]} 18.
g3 {[%clk 0:02:28.2]} 18... b5 {[%clk 0:01:59.9]} 19. Nd2 {[%clk 0:02:23.8]}
19... Nb6 {[%clk 0:01:55.6]} 20. Qc3 {[%clk 0:02:20.6]} 20... Bd7 {[%clk
0:01:29.3]} 21. Ba2 {[%clk 0:02:18.7]} 21... Rac8 {[%clk 0:01:21.4]} 22. Qc5
{[%clk 0:02:14.9]} 22... Na4 {[%clk 0:01:04.9]} 23. Qa7 {[%clk 0:02:12]} 23...
Be6 {[%clk 0:00:59.2]} 24. Bxe6 {[%clk 0:02:08.3]} 24... Qxe6 {[%clk 0:00:57.3]}
25. b3 {[%clk 0:01:58]} 25... Ra8 {[%clk 0:00:51.9]} 26. Qc7 {[%clk 0:01:56.4]}
26... Rec8 {[%clk 0:00:47.8]} 27. Qf4 {[%clk 0:01:23.1]} 27... Nb2 {[%clk
0:00:46.3]} 28. Rc5 {[%clk 0:01:16.9]} 28... Nd3 {[%clk 0:00:41.5]} 29. Qxf5
{[%clk 0:01:17]} 29... Nxc5 {[%clk 0:00:41.1]} 30. Qxc5 {[%clk 0:01:17.1]} 30...
a4 {[%clk 0:00:33.7]} 31. b4 {[%clk 0:01:15.3]} 31... Rf8 {[%clk 0:00:31.5]} 32.
Qc2 {[%clk 0:01:11.2]} 32... Rae8 {[%clk 0:00:30.8]} 33. Rc1 {[%clk 0:01:09.5]}
33... Rf6 {[%clk 0:00:30.4]} 34. Nb1 {[%clk 0:01:02.3]} 34... Qf5 {[%clk
0:00:22.5]} 35. f4 {[%clk 0:00:56.4]} 35... exf3 {[%clk 0:00:20.6]} 36. Qxf5
{[%clk 0:00:56.5]} 36... Rxf5 {[%clk 0:00:21.4]} 37. Kf2 {[%clk 0:00:57.1]}
37... Rf6 {[%clk 0:00:20.3]} 38. Nd2 {[%clk 0:00:55.6]} 38... g5 {[%clk
0:00:20.1]} 39. g4 {[%clk 0:00:54.4]} 39... h5 {[%clk 0:00:20]} 40. h3 {[%clk
0:00:54.9]} 40... hxg4 {[%clk 0:00:19.1]} 41. hxg4 {[%clk 0:00:55.8]} 41... Kg7
{[%clk 0:00:19.2]} 42. Rc5 {[%clk 0:00:53.1]} 42... Rh8 {[%clk 0:00:17.6]} 43.
Nf1 {[%clk 0:00:42.7]} 43... Kg6 {[%clk 0:00:15.4]} 44. e4 {[%clk 0:00:41.7]}
44... Rf4 {[%clk 0:00:15]} 45. Rxc6+ {[%clk 0:00:40.1]} 45... Rf6 {[%clk
0:00:15.2]} 46. Rxf6+ {[%clk 0:00:39.4]} 46... Kxf6 {[%clk 0:00:16.1]} 47. Kxf3
{[%clk 0:00:37.1]} 47... Rc8 {[%clk 0:00:16.8]} 48. e5+ {[%clk 0:00:35.6]} 48...
Ke6 {[%clk 0:00:16.6]} 49. Ke4 {[%clk 0:00:35]} 49... Rc3 {[%clk 0:00:16.5]} 50.
d5+ {[%clk 0:00:33.8]} 50... Ke7 {[%clk 0:00:16.7]} 51. Ne3 {[%clk 0:00:34]}
51... Rxa3 {[%clk 0:00:16.7]} 52. Nf5+ {[%clk 0:00:34.3]} 52... Kd8 {[%clk
0:00:16.1]} 53. d6 {[%clk 0:00:33.6]} 53... Ra1 {[%clk 0:00:15.1]} 54. e6 {[%clk
0:00:33.8]} 54... Re1+ {[%clk 0:00:15.2]} 55. Kd5 {[%clk 0:00:27.2]} 55... a3
{[%clk 0:00:15.6]} 56. Nh6 {[%clk 0:00:26.2]} 56... Rd1+ {[%clk 0:00:13.6]} 57.
Kc6 {[%clk 0:00:25.8]} 57... a2 {[%clk 0:00:13.7]} 58. Nf7+ {[%clk 0:00:25.6]}
58... Ke8 {[%clk 0:00:14.2]} 59. d7+ {[%clk 0:00:25.9]} 59... Ke7 {[%clk
0:00:14.7]} 60. Ne5 {[%clk 0:00:12.9]} 60... Kxe6 {[%clk 0:00:14.6]} 61. Nd3
{[%clk 0:00:06.5]} 61... Rxd3 {[%clk 0:00:14]} 62. d8=Q {[%clk 0:00:06.7]} 62...
Rxd8 {[%clk 0:00:13.3]} 0-1

[Event "Early-Titled-Tuesday-Blitz-April-02-2024"]
[Site "Chess.com"]
[Date "2024.04.02"]
[Round "11"]
[White "chess123456s"]
[Black "MathiasWomacka"]
[Result "1-0"]
[WhiteElo "2589"]
[BlackElo "2482"]
[TimeControl "180+1"]
[EndTime "10:08:33 PDT"]
[Termination "chess123456s won by resignation"]

1. d4 {[%clk 0:03:00.9]} 1... Nf6 {[%clk 0:02:58.9]} 2. Nc3 {[%clk 0:03:01]}
2... d5 {[%clk 0:02:58.1]} 3. Bf4 {[%clk 0:03:00.8]} 3... a6 {[%clk 0:02:57.7]}
4. e3 {[%clk 0:02:58.4]} 4... e6 {[%clk 0:02:56.6]} 5. a3 {[%clk 0:02:58.5]}
5... c5 {[%clk 0:02:55]} 6. Nf3 {[%clk 0:02:58.4]} 6... Nc6 {[%clk 0:02:54.3]}
7. Bd3 {[%clk 0:02:57.9]} 7... Bd6 {[%clk 0:02:43.6]} 8. Bxd6 {[%clk 0:02:56.2]}
8... Qxd6 {[%clk 0:02:43.2]} 9. dxc5 {[%clk 0:02:57.1]} 9... Qxc5 {[%clk
0:02:43.2]} 10. O-O {[%clk 0:02:58]} 10... O-O {[%clk 0:02:36.7]} 11. e4 {[%clk
0:02:57.9]} 11... d4 {[%clk 0:02:35.5]} 12. Ne2 {[%clk 0:02:57.8]} 12... e5
{[%clk 0:02:34.5]} 13. Ng3 {[%clk 0:02:53]} 13... h6 {[%clk 0:02:30.8]} 14. Nh4
{[%clk 0:02:50]} 14... Be6 {[%clk 0:02:24.7]} 15. Nhf5 {[%clk 0:02:47.1]} 15...
Ne7 {[%clk 0:02:09.8]} 16. Qf3 {[%clk 0:02:33]} 16... Nxf5 {[%clk 0:02:08.3]}
17. Nxf5 {[%clk 0:02:31.3]} 17... Kh7 {[%clk 0:01:44.6]} 18. Kh1 {[%clk
0:02:14]} 18... Ng8 {[%clk 0:01:29.4]} 19. Ng3 {[%clk 0:01:59.8]} 19... g6
{[%clk 0:01:27.5]} 20. Qe2 {[%clk 0:01:56.8]} 20... Nf6 {[%clk 0:01:20.6]} 21.
f4 {[%clk 0:01:55.4]} 21... exf4 {[%clk 0:01:15.7]} 22. Rxf4 {[%clk 0:01:56.3]}
22... Nd7 {[%clk 0:01:15.4]} 23. Raf1 {[%clk 0:01:29.5]} 23... Ne5 {[%clk
0:01:15]} 24. h3 {[%clk 0:01:20.2]} 24... Rac8 {[%clk 0:01:13.6]} 25. Qf2 {[%clk
0:01:16.7]} 25... b5 {[%clk 0:01:03.5]} 26. Rf6 {[%clk 0:01:13.4]} 26... Kg7
{[%clk 0:00:55.7]} 27. Qf4 {[%clk 0:01:07.5]} 27... Nd7 {[%clk 0:00:51.1]} 28.
Nh5+ {[%clk 0:00:47.8]} 28... Kh7 {[%clk 0:00:40.5]} 29. e5 {[%clk 0:00:28.7]}
29... Qxe5 {[%clk 0:00:39]} 30. Qxe5 {[%clk 0:00:21.7]} 30... Nxe5 {[%clk
0:00:39.9]} 31. Nf4 {[%clk 0:00:21.9]} 31... Bc4 {[%clk 0:00:35.8]} 32. Nxg6
{[%clk 0:00:18.6]} 32... Nxg6 {[%clk 0:00:31.1]} 33. Bxg6+ {[%clk 0:00:17.9]}
33... Kg7 {[%clk 0:00:30.9]} 34. Bd3 {[%clk 0:00:18.4]} 34... Bxd3 {[%clk
0:00:27.6]} 35. cxd3 {[%clk 0:00:19.3]} 35... Rc2 {[%clk 0:00:27.2]} 36. R1f2
{[%clk 0:00:19]} 36... Rxf2 {[%clk 0:00:26.3]} 37. Rxf2 {[%clk 0:00:19.9]} 37...
Rc8 {[%clk 0:00:25.9]} 38. Kh2 {[%clk 0:00:20.2]} 38... Rc1 {[%clk 0:00:25.6]}
39. Rd2 {[%clk 0:00:16.9]} 39... Kf6 {[%clk 0:00:24.3]} 40. Kg3 {[%clk
0:00:17.6]} 40... Rf1 {[%clk 0:00:23]} 41. Rf2+ {[%clk 0:00:14.9]} 41... Rxf2
{[%clk 0:00:22.3]} 42. Kxf2 {[%clk 0:00:15.8]} 42... Kf5 {[%clk 0:00:22.4]} 43.
Kf3 {[%clk 0:00:16]} 43... h5 {[%clk 0:00:22.7]} 44. g3 {[%clk 0:00:12.5]} 44...
f6 {[%clk 0:00:20.1]} 45. b4 {[%clk 0:00:11.7]} 45... Ke5 {[%clk 0:00:17.8]} 46.
Kf2 {[%clk 0:00:08.2]} 46... Kf5 {[%clk 0:00:15.3]} 47. Kg2 {[%clk 0:00:08.6]}
47... Ke5 {[%clk 0:00:14.2]} 48. Kf3 {[%clk 0:00:09.1]} 48... Kf5 {[%clk
0:00:14.5]} 49. h4 {[%clk 0:00:09.3]} 49... Ke5 {[%clk 0:00:09.9]} 50. g4 {[%clk
0:00:09.7]} 50... hxg4+ {[%clk 0:00:07.3]} 51. Kxg4 {[%clk 0:00:10.6]} 51... f5+
{[%clk 0:00:07.4]} 52. Kg5 {[%clk 0:00:11.2]} 52... f4 {[%clk 0:00:07.7]} 53.
Kg4 {[%clk 0:00:11.9]} 53... f3 {[%clk 0:00:07.1]} 54. Kxf3 {[%clk 0:00:12.3]}
54... Kf5 {[%clk 0:00:08]} 55. h5 {[%clk 0:00:12.7]} 55... Kg5 {[%clk
0:00:08.5]} 56. Ke4 {[%clk 0:00:13.6]} 56... Kxh5 {[%clk 0:00:09]} 57. Kxd4
{[%clk 0:00:14.5]} 57... Kg5 {[%clk 0:00:09.8]} 58. Kc5 {[%clk 0:00:15.3]} 58...
Kf5 {[%clk 0:00:10.7]} 59. d4 {[%clk 0:00:15.9]} 59... Ke4 {[%clk 0:00:10.5]}
60. d5 {[%clk 0:00:16.2]} 60... Kd3 {[%clk 0:00:10.8]} 61. d6 {[%clk 0:00:16.8]}
61... Kc3 {[%clk 0:00:11.7]} 62. d7 {[%clk 0:00:17.4]} 62... Kb3 {[%clk
0:00:12.6]} 63. d8=Q {[%clk 0:00:18.1]} 63... Kxa3 {[%clk 0:00:13.4]} 64. Qa5+
{[%clk 0:00:17.3]} 1-0